[Event "Live Chess"]
[Site "Chess.com"]
[Date "2023.05.20"]
[Round "-"]
[White "kerryman1969"]
[Black "ethiebear"]
[Result "1-0"]
[WhiteElo "1158"]
[BlackElo "774"]
[TimeControl "300"]
[EndTime "11:52:01 PDT"]
[Termination "kerryman1969 won by checkmate"]

1. e4 {[%clk 0:04:55.8]} 1... e5 {[%clk 0:04:58.8]} 2. Nf3 {[%clk 0:04:51.8]}
2... Nc6 {[%clk 0:04:57.2]} 3. d4 {[%clk 0:04:48.2]} 3... d6 {[%clk 0:04:54.1]}
4. dxe5 {[%clk 0:04:44.6]} 4... Nxe5 {[%clk 0:04:48.8]} 5. Nxe5 {[%clk
0:04:40.7]} 5... dxe5 {[%clk 0:04:47.6]} 6. Qxd8+ {[%clk 0:04:36.6]} 6... Kxd8
{[%clk 0:04:46]} 7. Be3 {[%clk 0:04:31.9]} 7... Be6 {[%clk 0:04:36.6]} 8. Nc3
{[%clk 0:04:28.3]} 8... Bb4 {[%clk 0:04:23.2]} 9. Bd2 {[%clk 0:04:23.5]} 9...
Nf6 {[%clk 0:04:18.5]} 10. f3 {[%clk 0:04:19.8]} 10... Re8 {[%clk 0:04:13.7]}
11. a3 {[%clk 0:04:14.4]} 11... Bxc3 {[%clk 0:04:11.9]} 12. Bxc3 {[%clk
0:04:11.2]} 12... Ke7 {[%clk 0:04:08.7]} 13. Rd1 {[%clk 0:02:31.9]} 13... Red8
{[%clk 0:03:59.9]} 14. Be2 {[%clk 0:02:28.6]} 14... Nd7 {[%clk 0:03:41]} 15. Bb5
{[%clk 0:02:23.3]} 15... Nc5 {[%clk 0:03:36.2]} 16. Bxe5 {[%clk 0:02:17.1]}
16... Rxd1+ {[%clk 0:03:11]} 17. Kxd1 {[%clk 0:02:12.1]} 17... Rd8+ {[%clk
0:03:10.3]} 18. Ke2 {[%clk 0:02:09.6]} 18... f5 {[%clk 0:03:02.4]} 19. exf5
{[%clk 0:02:01.1]} 19... Bxf5 {[%clk 0:03:00]} 20. Re1 {[%clk 0:01:58.4]} 20...
Nd7 {[%clk 0:02:48]} 21. Bc3 {[%clk 0:01:53.4]} 21... Bxc2 {[%clk 0:02:42.8]}
22. Bxg7 {[%clk 0:01:48.6]} 22... Nc5 {[%clk 0:02:40.7]} 23. Kf2+ {[%clk
0:01:45.1]} 23... Kf7 {[%clk 0:02:28.6]} 24. Bc3 {[%clk 0:01:40.3]} 24... Nd3+
{[%clk 0:02:23]} 25. Bxd3 {[%clk 0:01:36.8]} 25... Rxd3 {[%clk 0:02:17.5]} 26.
Re3 {[%clk 0:01:32.7]} 26... c5 {[%clk 0:02:01.9]} 27. Rxd3 {[%clk 0:01:29.8]}
27... Bxd3 {[%clk 0:02:00.8]} 28. Ke3 {[%clk 0:01:27.7]} 28... c4 {[%clk
0:01:58.6]} 29. Bd4 {[%clk 0:01:24.9]} 29... Ke6 {[%clk 0:01:53.6]} 30. Bxa7
{[%clk 0:01:21.9]} 30... Kd5 {[%clk 0:01:51.8]} 31. f4 {[%clk 0:01:16]} 31...
Kc6 {[%clk 0:01:50.6]} 32. g4 {[%clk 0:01:11.3]} 32... Kb5 {[%clk 0:01:49.5]}
33. h4 {[%clk 0:01:07.5]} 33... Ka4 {[%clk 0:01:48.3]} 34. Bd4 {[%clk
0:01:02.5]} 34... Kb3 {[%clk 0:01:43.9]} 35. f5 {[%clk 0:00:59.3]} 35... h5
{[%clk 0:01:31.8]} 36. f6 {[%clk 0:00:51.3]} 36... Bg6 {[%clk 0:01:27.4]} 37. g5
{[%clk 0:00:48.7]} 37... b5 {[%clk 0:01:20]} 38. Bc3 {[%clk 0:00:46.4]} 38... b4
{[%clk 0:01:13.3]} 39. axb4 {[%clk 0:00:42.1]} 39... Ka2 {[%clk 0:01:08.7]} 40.
Kd4 {[%clk 0:00:38.5]} 40... Kb3 {[%clk 0:01:04.5]} 41. b5 {[%clk 0:00:35.6]}
41... Ka4 {[%clk 0:00:39.4]} 42. b6 {[%clk 0:00:32.1]} 42... Kb5 {[%clk
0:00:36]} 43. b7 {[%clk 0:00:25.5]} 43... Kc6 {[%clk 0:00:23.8]} 44. b8=Q {[%clk
0:00:22.5]} 44... Kd7 {[%clk 0:00:20.9]} 45. Kxc4 {[%clk 0:00:19]} 45... Ke6
{[%clk 0:00:16.6]} 46. Qe5+ {[%clk 0:00:16.7]} 46... Kd7 {[%clk 0:00:15.2]} 47.
Bb4 {[%clk 0:00:14.6]} 47... Kc8 {[%clk 0:00:14.1]} 48. Qe7 {[%clk 0:00:11.3]}
48... Kb8 {[%clk 0:00:12.7]} 49. Kc5 {[%clk 0:00:09.8]} 49... Ka8 {[%clk
0:00:10.1]} 50. Kc6 {[%clk 0:00:09.7]} 50... Kb8 {[%clk 0:00:09.3]} 51. Qb7#
{[%clk 0:00:07.6]} 1-0

[Event "Live Chess"]
[Site "Chess.com"]
[Date "2023.05.20"]
[Round "-"]
[White "zdanevych"]
[Black "BigDom87"]
[Result "0-1"]
[WhiteElo "1519"]
[BlackElo "1275"]
[TimeControl "300"]
[EndTime "11:52:05 PDT"]
[Termination "BigDom87 won by resignation"]

1. d4 {[%clk 0:04:59]} 1... Nf6 {[%clk 0:04:58.1]} 2. c4 {[%clk 0:04:58.3]} 2...
e6 {[%clk 0:04:56.8]} 3. Nc3 {[%clk 0:04:57.6]} 3... d5 {[%clk 0:04:55.8]} 4.
cxd5 {[%clk 0:04:56.1]} 4... exd5 {[%clk 0:04:54.2]} 5. Nf3 {[%clk 0:04:54.2]}
5... Be7 {[%clk 0:04:51.8]} 6. Bf4 {[%clk 0:04:51.6]} 6... c6 {[%clk 0:04:42.3]}
7. h3 {[%clk 0:04:50.7]} 7... O-O {[%clk 0:04:41.1]} 8. e3 {[%clk 0:04:49.9]}
8... h6 {[%clk 0:04:38.4]} 9. Bd3 {[%clk 0:04:49.1]} 9... Bd6 {[%clk 0:04:28.3]}
10. Ne5 {[%clk 0:04:44.5]} 10... Nbd7 {[%clk 0:04:25.4]} 11. O-O {[%clk
0:04:34.5]} 11... Qc7 {[%clk 0:04:14.4]} 12. Rc1 {[%clk 0:04:29.9]} 12... Nxe5
{[%clk 0:04:11]} 13. Bxe5 {[%clk 0:04:29.8]} 13... Bxe5 {[%clk 0:04:09.6]} 14.
dxe5 {[%clk 0:04:29.7]} 14... Qxe5 {[%clk 0:04:08.4]} 15. Bb1 {[%clk 0:04:26.1]}
15... Qg5 {[%clk 0:04:04.9]} 16. Kh1 {[%clk 0:04:19.5]} 16... Bf5 {[%clk
0:03:55]} 17. f4 {[%clk 0:04:08.4]} 17... Qg6 {[%clk 0:03:51.3]} 18. Qb3 {[%clk
0:03:59.3]} 18... Bxb1 {[%clk 0:03:45.9]} 19. Rxb1 {[%clk 0:03:58.5]} 19... Rab8
{[%clk 0:03:42.5]} 20. Na4 {[%clk 0:03:53]} 20... Ne4 {[%clk 0:03:39.7]} 21. Rf3
{[%clk 0:03:45.7]} 21... Nd2 {[%clk 0:03:24.2]} 22. Qd1 {[%clk 0:03:37.6]} 22...
Nxf3 {[%clk 0:03:21.4]} 23. Qxf3 {[%clk 0:03:36.2]} 23... Qxb1+ {[%clk
0:03:18.2]} 24. Kh2 {[%clk 0:03:34.9]} 24... Qe4 {[%clk 0:03:13.1]} 25. Qe2
{[%clk 0:03:33.2]} 25... Qxa4 {[%clk 0:03:10.4]} 26. b3 {[%clk 0:03:32]} 0-1

[Event "Live Chess"]
[Site "Chess.com"]
[Date "2023.05.20"]
[Round "-"]
[White "Greenbecker"]
[Black "bigedd"]
[Result "1-0"]
[WhiteElo "1656"]
[BlackElo "553"]
[TimeControl "300"]
[EndTime "11:52:07 PDT"]
[Termination "Greenbecker won by resignation"]

1. e4 {[%clk 0:04:57.6]} 1... e5 {[%clk 0:04:57.5]} 2. Nf3 {[%clk 0:04:56.6]}
2... Nc6 {[%clk 0:04:55.9]} 3. Bb5 {[%clk 0:04:55.6]} 3... a6 {[%clk 0:04:53.9]}
4. Bxc6 {[%clk 0:04:54.3]} 4... bxc6 {[%clk 0:04:51.5]} 5. O-O {[%clk
0:04:53.3]} 5... Bb7 {[%clk 0:04:50]} 6. Nxe5 {[%clk 0:04:52.4]} 6... Bd6 {[%clk
0:04:45.2]} 7. Nf3 {[%clk 0:04:50.3]} 7... Nf6 {[%clk 0:04:43.8]} 8. e5 {[%clk
0:04:48.3]} 8... Bxe5 {[%clk 0:04:37.8]} 9. Nxe5 {[%clk 0:04:34.9]} 9... O-O
{[%clk 0:04:36.2]} 10. Re1 {[%clk 0:04:33.2]} 10... Re8 {[%clk 0:04:32.7]} 11.
Nf3 {[%clk 0:04:31.5]} 11... c5 {[%clk 0:04:27.2]} 12. Rxe8+ {[%clk 0:04:28.4]}
12... Qxe8 {[%clk 0:04:23.5]} 13. Nc3 {[%clk 0:04:23.8]} 13... Ne4 {[%clk
0:04:13.3]} 14. Nxe4 {[%clk 0:04:21.7]} 14... Qxe4 {[%clk 0:04:10.6]} 15. d3
{[%clk 0:04:19.4]} 15... Qg4 {[%clk 0:04:06.6]} 16. Be3 {[%clk 0:04:16]} 16...
Bxf3 {[%clk 0:04:04.5]} 17. Qxf3 {[%clk 0:04:14.8]} 17... Qxf3 {[%clk
0:04:02.4]} 18. gxf3 {[%clk 0:04:13.9]} 18... Re8 {[%clk 0:03:59.1]} 19. Bxc5
{[%clk 0:04:12.4]} 19... d6 {[%clk 0:03:57.5]} 20. Bd4 {[%clk 0:04:10]} 20...
Re2 {[%clk 0:03:55.7]} 21. c4 {[%clk 0:04:06]} 21... c5 {[%clk 0:03:50.5]} 22.
Bc3 {[%clk 0:04:04.3]} 22... f6 {[%clk 0:03:48.6]} 23. Re1 {[%clk 0:04:02.3]}
23... Rxe1+ {[%clk 0:03:41.2]} 24. Bxe1 {[%clk 0:04:00.7]} 24... Kf7 {[%clk
0:03:37.1]} 25. Kg2 {[%clk 0:03:57.2]} 25... Ke6 {[%clk 0:03:35.9]} 26. b4
{[%clk 0:03:56.2]} 26... Kf5 {[%clk 0:03:32.9]} 27. b5 {[%clk 0:03:55.1]} 27...
Ke6 {[%clk 0:03:29.9]} 28. bxa6 {[%clk 0:03:53.4]} 1-0

[Event "Live Chess"]
[Site "Chess.com"]
[Date "2023.05.20"]
[Round "-"]
[White "booktrunk"]
[Black "1600x"]
[Result "1/2-1/2"]
[WhiteElo "1328"]
[BlackElo "1666"]
[TimeControl "300"]
[EndTime "11:52:07 PDT"]
[Termination "Game drawn by repetition"]

1. d4 {[%clk 0:04:59]} 1... Nf6 {[%clk 0:04:57.8]} 2. Nf3 {[%clk 0:04:55.9]}
2... d5 {[%clk 0:04:56.3]} 3. c3 {[%clk 0:04:54.6]} 3... c5 {[%clk 0:04:54.8]}
4. dxc5 {[%clk 0:04:53.5]} 4... Nc6 {[%clk 0:04:53.2]} 5. Be3 {[%clk 0:04:51.6]}
5... Bd7 {[%clk 0:04:51]} 6. g3 {[%clk 0:04:47.2]} 6... Ne4 {[%clk 0:04:49.9]}
7. Bg2 {[%clk 0:04:42.8]} 7... e6 {[%clk 0:04:48.7]} 8. b4 {[%clk 0:04:29.8]}
8... Be7 {[%clk 0:04:42.9]} 9. Nfd2 {[%clk 0:04:28.5]} 9... f5 {[%clk
0:04:39.7]} 10. Nxe4 {[%clk 0:04:26.8]} 10... fxe4 {[%clk 0:04:38.7]} 11. Bd4
{[%clk 0:04:24.5]} 11... O-O {[%clk 0:04:36.8]} 12. Qd2 {[%clk 0:04:20.4]} 12...
Nxd4 {[%clk 0:04:34]} 13. Qxd4 {[%clk 0:04:17.9]} 13... g6 {[%clk 0:04:30.4]}
14. O-O {[%clk 0:04:14.9]} 14... b6 {[%clk 0:04:25.9]} 15. cxb6 {[%clk
0:04:10.2]} 15... axb6 {[%clk 0:04:24.6]} 16. Nd2 {[%clk 0:04:07.5]} 16... Bf6
{[%clk 0:04:22.9]} 17. Qe3 {[%clk 0:04:06.1]} 17... Bg5 {[%clk 0:03:45.2]} 18.
Qd4 {[%clk 0:04:01.7]} 18... Bf6 {[%clk 0:03:41.7]} 19. Qe3 {[%clk 0:03:59.9]}
19... Bg5 {[%clk 0:03:37.1]} 20. Qd4 {[%clk 0:03:58.7]} 20... Bf6 {[%clk
0:03:35.1]} 1/2-1/2

[Event "Live Chess"]
[Site "Chess.com"]
[Date "2023.05.20"]
[Round "-"]
[White "1PRK1"]
[Black "Sidharth2008"]
[Result "1-0"]
[WhiteElo "1381"]
[BlackElo "1119"]
[TimeControl "300"]
[EndTime "11:52:09 PDT"]
[Termination "1PRK1 won by checkmate"]

1. e4 {[%clk 0:04:44.2]} 1... e5 {[%clk 0:04:57.1]} 2. Nf3 {[%clk 0:04:42.4]}
2... Nc6 {[%clk 0:04:56.1]} 3. Bb5 {[%clk 0:04:40.3]} 3... a6 {[%clk 0:04:54.1]}
4. Ba4 {[%clk 0:04:37.9]} 4... b5 {[%clk 0:04:52.5]} 5. Bb3 {[%clk 0:04:37.1]}
5... Bc5 {[%clk 0:04:50.3]} 6. c3 {[%clk 0:04:32.3]} 6... Nge7 {[%clk 0:04:47]}
7. O-O {[%clk 0:04:26.7]} 7... O-O {[%clk 0:04:45.4]} 8. d4 {[%clk 0:04:23.6]}
8... exd4 {[%clk 0:04:43.9]} 9. cxd4 {[%clk 0:04:22.4]} 9... Bb6 {[%clk
0:04:43.1]} 10. d5 {[%clk 0:04:20.1]} 10... Na5 {[%clk 0:04:40.3]} 11. Bc2
{[%clk 0:04:16.3]} 11... Nc4 {[%clk 0:04:39]} 12. b3 {[%clk 0:04:12.8]} 12...
Nd6 {[%clk 0:04:31.6]} 13. e5 {[%clk 0:04:08.7]} 13... Nb7 {[%clk 0:04:25.2]}
14. Qd3 {[%clk 0:04:08]} 14... d6 {[%clk 0:04:23.1]} 15. Qxh7# {[%clk
0:04:06.2]} 1-0

[Event "Live Chess"]
[Site "Chess.com"]
[Date "2023.05.20"]
[Round "-"]
[White "mightysmasher"]
[Black "MJMykh"]
[Result "1-0"]
[WhiteElo "2129"]
[BlackElo "1034"]
[TimeControl "300"]
[EndTime "11:52:11 PDT"]
[Termination "mightysmasher won by resignation"]

1. e4 {[%clk 0:04:58.6]} 1... e5 {[%clk 0:04:59.4]} 2. Nf3 {[%clk 0:04:55.8]}
2... Nc6 {[%clk 0:04:57.7]} 3. d4 {[%clk 0:04:55.1]} 3... exd4 {[%clk
0:04:56.7]} 4. Nxd4 {[%clk 0:04:54.1]} 4... Nxd4 {[%clk 0:04:56.3]} 5. Qxd4
{[%clk 0:04:53.4]} 5... Nf6 {[%clk 0:04:56]} 6. Nc3 {[%clk 0:04:52]} 6... b6
{[%clk 0:04:50.1]} 7. Bg5 {[%clk 0:04:50.4]} 7... Bc5 {[%clk 0:04:46.3]} 8. Qd2
{[%clk 0:04:45.2]} 8... O-O {[%clk 0:04:42.7]} 9. e5 {[%clk 0:04:44]} 9... Qe7
{[%clk 0:04:39.6]} 10. O-O-O {[%clk 0:04:39.4]} 10... Ne4 {[%clk 0:04:26.8]} 11.
Nxe4 {[%clk 0:04:35.6]} 11... Qxe5 {[%clk 0:04:22.4]} 12. Nxc5 {[%clk
0:04:29.1]} 12... Qxc5 {[%clk 0:04:17.5]} 13. Re1 {[%clk 0:04:26.2]} 13... d6
{[%clk 0:04:14.2]} 14. Bd3 {[%clk 0:04:24]} 14... Be6 {[%clk 0:04:11.4]} 15. a3
{[%clk 0:04:22.5]} 15... Qd5 {[%clk 0:04:07.4]} 16. Be3 {[%clk 0:04:16]} 16...
Qa2 {[%clk 0:04:05]} 17. Qc3 {[%clk 0:04:13.9]} 17... Qa1+ {[%clk 0:04:02.5]}
18. Kd2 {[%clk 0:04:12.2]} 18... Qa2 {[%clk 0:04:00.7]} 19. b3 {[%clk
0:04:09.9]} 19... Qxa3 {[%clk 0:03:58.9]} 20. Ra1 {[%clk 0:04:07.9]} 1-0

[Event "Live Chess"]
[Site "Chess.com"]
[Date "2023.05.20"]
[Round "-"]
[White "DRS44"]
[Black "PLZ909"]
[Result "0-1"]
[WhiteElo "1409"]
[BlackElo "1313"]
[TimeControl "300"]
[EndTime "11:52:12 PDT"]
[Termination "PLZ909 won by checkmate"]

1. e4 {[%clk 0:04:53.7]} 1... d5 {[%clk 0:04:59.1]} 2. exd5 {[%clk 0:04:49]}
2... Qxd5 {[%clk 0:04:59]} 3. Nf3 {[%clk 0:04:44.2]} 3... Bg4 {[%clk 0:04:55.2]}
4. c4 {[%clk 0:04:37.3]} 4... Qa5 {[%clk 0:04:32.6]} 5. Nc3 {[%clk 0:04:22]}
5... e6 {[%clk 0:04:27.2]} 6. Be2 {[%clk 0:04:15.3]} 6... Bb4 {[%clk 0:04:25]}
7. h3 {[%clk 0:04:05.3]} 7... Bh5 {[%clk 0:04:17.8]} 8. g4 {[%clk 0:03:59.8]}
8... Bg6 {[%clk 0:04:15.8]} 9. Ne5 {[%clk 0:03:56.1]} 9... Qxe5 {[%clk
0:04:09.5]} 10. O-O {[%clk 0:03:28.1]} 10... Bd6 {[%clk 0:04:02.5]} 11. f4
{[%clk 0:03:19.8]} 11... Qd4+ {[%clk 0:03:50.8]} 12. Kh2 {[%clk 0:03:13]} 12...
Bxf4+ {[%clk 0:03:47]} 13. Rxf4 {[%clk 0:03:03.6]} 13... Qxf4+ {[%clk
0:03:44.2]} 14. Kg1 {[%clk 0:02:50.6]} 14... Qd4+ {[%clk 0:03:38.2]} 15. Kh2
{[%clk 0:02:45.1]} 15... Nf6 {[%clk 0:03:31.7]} 16. Nb5 {[%clk 0:02:40.6]} 16...
Qf4+ {[%clk 0:03:24.5]} 17. Kh1 {[%clk 0:02:28.2]} 17... Be4+ {[%clk 0:03:21.9]}
18. Kg1 {[%clk 0:02:19.4]} 18... Qg3+ {[%clk 0:03:15.8]} 19. Kf1 {[%clk
0:02:11.2]} 19... Qxh3+ {[%clk 0:02:10.6]} 20. Kf2 {[%clk 0:02:02.8]} 20...
Nxg4+ {[%clk 0:02:07.2]} 21. Ke1 {[%clk 0:01:57.6]} 21... Qg3+ {[%clk
0:01:37.2]} 22. Kf1 {[%clk 0:01:39.9]} 22... Nh2# {[%clk 0:01:32.4]} 0-1

[Event "Live Chess"]
[Site "Chess.com"]
[Date "2023.05.20"]
[Round "-"]
[White "NAZRIZ1977"]
[Black "MarkLim1"]
[Result "0-1"]
[WhiteElo "2112"]
[BlackElo "1641"]
[TimeControl "300"]
[EndTime "11:52:24 PDT"]
[Termination "MarkLim1 won by resignation"]

1. c4 {[%clk 0:04:57.7]} 1... e6 {[%clk 0:04:58.7]} 2. g3 {[%clk 0:04:55.8]}
2... d5 {[%clk 0:04:57.8]} 3. Bg2 {[%clk 0:04:55.4]} 3... Nf6 {[%clk 0:04:57]}
4. Nf3 {[%clk 0:04:54.8]} 4... Be7 {[%clk 0:04:56.2]} 5. O-O {[%clk 0:04:54.3]}
5... O-O {[%clk 0:04:55.6]} 6. b3 {[%clk 0:04:53.7]} 6... c6 {[%clk 0:04:54.8]}
7. Bb2 {[%clk 0:04:52.8]} 7... b6 {[%clk 0:04:54.1]} 8. e3 {[%clk 0:04:52.3]}
8... Nbd7 {[%clk 0:04:53]} 9. Nc3 {[%clk 0:04:51.8]} 9... Ba6 {[%clk 0:04:51.7]}
10. d3 {[%clk 0:04:46.6]} 10... Rc8 {[%clk 0:04:50.3]} 11. Qe2 {[%clk 0:04:46]}
11... b5 {[%clk 0:04:45.3]} 12. cxb5 {[%clk 0:04:40.9]} 12... Bxb5 {[%clk
0:04:43.9]} 13. Nxb5 {[%clk 0:04:39.6]} 13... cxb5 {[%clk 0:04:43.1]} 14. Ne1
{[%clk 0:04:36.9]} 14... Qb6 {[%clk 0:04:40.8]} 15. g4 {[%clk 0:04:36]} 15...
Rc6 {[%clk 0:04:36.6]} 16. g5 {[%clk 0:04:32.1]} 16... Ne8 {[%clk 0:04:35.1]}
17. h4 {[%clk 0:04:31.1]} 17... Nd6 {[%clk 0:04:34]} 18. Qg4 {[%clk 0:04:27.6]}
18... Rfc8 {[%clk 0:04:31.9]} 19. h5 {[%clk 0:04:25.2]} 19... Nf5 {[%clk
0:04:18.8]} 20. g6 {[%clk 0:04:06.7]} 20... hxg6 {[%clk 0:04:16.3]} 21. hxg6
{[%clk 0:04:05.8]} 21... fxg6 {[%clk 0:04:12.5]} 22. Qxg6 {[%clk 0:04:03]} 22...
Bf6 {[%clk 0:04:07.4]} 23. Bxf6 {[%clk 0:03:56.1]} 23... Nxf6 {[%clk 0:04:05.9]}
24. Nf3 {[%clk 0:03:54.1]} 24... Rc2 {[%clk 0:03:57.3]} 25. Ng5 {[%clk
0:03:49.5]} 25... Rd2 {[%clk 0:03:46.7]} 26. Qf7+ {[%clk 0:03:40.5]} 26... Kh8
{[%clk 0:03:44.1]} 27. Nxe6 {[%clk 0:03:40]} 27... Rg8 {[%clk 0:03:21.9]} 28. e4
{[%clk 0:03:26.7]} 28... dxe4 {[%clk 0:03:09.3]} 29. Bxe4 {[%clk 0:03:22.3]}
29... Nxe4 {[%clk 0:03:01.9]} 30. dxe4 {[%clk 0:03:13.5]} 30... Nh6 {[%clk
0:02:56.1]} 31. Qg6 {[%clk 0:03:07.7]} 31... Rd6 {[%clk 0:02:46.5]} 0-1

[Event "Live Chess"]
[Site "Chess.com"]
[Date "2023.05.20"]
[Round "-"]
[White "ramses-IIG"]
[Black "ACx04"]
[Result "1-0"]
[WhiteElo "789"]
[BlackElo "415"]
[TimeControl "300"]
[EndTime "11:52:39 PDT"]
[Termination "ramses-IIG won by checkmate"]

1. e4 {[%clk 0:04:57.9]} 1... e5 {[%clk 0:04:55.4]} 2. Nf3 {[%clk 0:04:57.8]}
2... Nc6 {[%clk 0:04:54]} 3. Bc4 {[%clk 0:04:56.1]} 3... h6 {[%clk 0:04:52.3]}
4. d3 {[%clk 0:04:56]} 4... Nf6 {[%clk 0:04:50.8]} 5. c3 {[%clk 0:04:55.9]} 5...
Bc5 {[%clk 0:04:49.3]} 6. d4 {[%clk 0:04:54.5]} 6... exd4 {[%clk 0:04:48]} 7.
cxd4 {[%clk 0:04:54.4]} 7... Bb6 {[%clk 0:04:47.1]} 8. d5 {[%clk 0:04:52.3]}
8... Nb4 {[%clk 0:04:45.8]} 9. Qd2 {[%clk 0:04:46.9]} 9... Nxe4 {[%clk
0:04:44.5]} 10. Qxb4 {[%clk 0:04:33.1]} 10... Bxf2+ {[%clk 0:04:42.7]} 11. Kf1
{[%clk 0:04:32.2]} 11... Bb6 {[%clk 0:04:38.1]} 12. Ke2 {[%clk 0:04:20.9]} 12...
Qf6 {[%clk 0:04:36.5]} 13. Bd2 {[%clk 0:04:06]} 13... Nxd2 {[%clk 0:04:34.8]}
14. Qxd2 {[%clk 0:04:00.7]} 14... a5 {[%clk 0:04:33.4]} 15. Nc3 {[%clk
0:03:54.2]} 15... d6 {[%clk 0:04:30.8]} 16. Bb5+ {[%clk 0:03:52]} 16... Bd7
{[%clk 0:04:28]} 17. Bxd7+ {[%clk 0:03:43]} 17... Kxd7 {[%clk 0:04:26]} 18. Nb5
{[%clk 0:03:39.9]} 18... Qe7+ {[%clk 0:04:22.6]} 19. Kd1 {[%clk 0:03:34.2]}
19... Rhe8 {[%clk 0:04:19.6]} 20. Re1 {[%clk 0:03:30.5]} 20... Qd8 {[%clk
0:04:17]} 21. Rxe8 {[%clk 0:03:27.2]} 21... Qxe8 {[%clk 0:04:15.5]} 22. Kc2
{[%clk 0:03:23.9]} 22... Qe4+ {[%clk 0:04:12.7]} 23. Kd1 {[%clk 0:03:13.9]}
23... Be3 {[%clk 0:04:06.3]} 24. Qc3 {[%clk 0:03:03.5]} 24... Bd4 {[%clk
0:03:59.5]} 25. Qxc7+ {[%clk 0:03:01.1]} 25... Ke8 {[%clk 0:03:56]} 26. Nxd6+
{[%clk 0:02:39.2]} 26... Kf8 {[%clk 0:03:51.5]} 27. Qxf7# {[%clk 0:02:37.3]} 1-0

[Event "Live Chess"]
[Site "Chess.com"]
[Date "2023.05.20"]
[Round "-"]
[White "Leonid_Starozhilov"]
[Black "KeithArkell"]
[Result "1/2-1/2"]
[WhiteElo "2652"]
[BlackElo "2610"]
[TimeControl "300"]
[EndTime "11:52:55 PDT"]
[Termination "Game drawn by agreement"]

1. e4 {[%clk 0:04:58.9]} 1... c6 {[%clk 0:04:59.1]} 2. d3 {[%clk 0:04:57.7]}
2... d5 {[%clk 0:04:58.2]} 3. Nd2 {[%clk 0:04:57.6]} 3... e5 {[%clk 0:04:43.5]}
4. Ngf3 {[%clk 0:04:55.5]} 4... Bg4 {[%clk 0:04:41.2]} 5. h3 {[%clk 0:04:53.2]}
5... Bxf3 {[%clk 0:04:40.1]} 6. Nxf3 {[%clk 0:04:52.4]} 6... Nd7 {[%clk
0:04:37.8]} 7. c3 {[%clk 0:04:39.4]} 7... dxe4 {[%clk 0:04:36.1]} 8. dxe4 {[%clk
0:04:38.1]} 8... Nc5 {[%clk 0:04:34.4]} 9. Qc2 {[%clk 0:04:32.3]} 9... Nf6
{[%clk 0:04:31.5]} 10. Bg5 {[%clk 0:04:28.5]} 10... Be7 {[%clk 0:04:27.4]} 11.
Bxf6 {[%clk 0:04:27.6]} 11... Bxf6 {[%clk 0:04:26]} 12. a4 {[%clk 0:04:22.3]}
12... a5 {[%clk 0:04:25]} 13. Bc4 {[%clk 0:04:21.2]} 13... O-O {[%clk
0:04:23.4]} 14. O-O {[%clk 0:04:19.9]} 14... Qe7 {[%clk 0:04:21.9]} 15. Rfd1
{[%clk 0:04:08.1]} 15... Rfd8 {[%clk 0:04:20.4]} 16. g3 {[%clk 0:04:05.2]} 16...
g6 {[%clk 0:04:17.1]} 17. h4 {[%clk 0:04:02.2]} 17... h5 {[%clk 0:04:15.4]} 18.
Kg2 {[%clk 0:03:57]} 18... Kg7 {[%clk 0:04:14.6]} 19. Rxd8 {[%clk 0:03:54.6]}
19... Rxd8 {[%clk 0:04:13.3]} 20. b3 {[%clk 0:03:45.5]} 20... Rd7 {[%clk
0:04:08.5]} 21. b4 {[%clk 0:03:27.7]} 21... axb4 {[%clk 0:04:06.5]} 22. cxb4
{[%clk 0:03:27.6]} 22... Ne6 {[%clk 0:03:58]} 23. Bxe6 {[%clk 0:03:26.9]} 23...
Qxe6 {[%clk 0:03:57.2]} 24. b5 {[%clk 0:03:25.6]} 24... cxb5 {[%clk 0:03:55.9]}
25. axb5 {[%clk 0:03:23.8]} 25... Qd6 {[%clk 0:03:53.4]} 1/2-1/2